[Event "3rd Yerevan Open-A 2021"]
[Site "Yerevan"]
[Date "2021.10.14"]
[Round "1.12"]
[White "Sivuk, Vitaly"]
[Black "Mohota, Nisha"]
[Result "1-0"]
[ECO "D55"]
[WhiteElo "2529"]
[BlackElo "2195"]
[Annotator "ChessBase"]
[PlyCount "61"]
[EventDate "2021.10.14"]
[EventType "swiss"]
[EventCountry "ARM"]
[SourceTitle "playchess.com"]
[Source "ChessBase"]
[SourceQuality "1"]
[TimeControl "40/5400+30:1800+30"]

1. d4 {[%emt 0:00:07]} Nf6 {[%emt 0:00:18]} 2. c4 {[%emt 0:00:12]} e6 {[%emt 0:00:16]} 3. Nf3 {[%emt 0:00:11]} d5 {[%emt 0:01:44]} 4. Nc3 {[%emt 0:00:13]} Be7 {[%emt 0:00:13]} 5. Bg5 {[%emt 0:00:15]} O-O {[%emt 0:00:23]} 6. e3 {[%emt 0:00:12]} h6 {[%emt 0:00:28]} 7. Bf4 {[%emt 0:00:16]} b6 {[%emt 0:02:35]} 8. g4 {[%emt 0:00:20]} Ne4 {[%emt 0:03:44]} 9. h4 {[%emt 0:03:29]} e5 {[%emt 0:15:34]} 10. Nxe5 {[%emt 0:06:30]} Bxh4 {[%emt 0:01:29]} 11. Nxe4 {[%emt 0:01:59]} dxe4 {[%emt 0:00:04]} 12. Qc2 {[%emt 0:00:16]} Bb7 {[%emt 0:09:53]} 13. Bg2 {[%emt 0:02:18]} Qe7 {[%emt 0:10:06]} 14. O-O-O {[%emt 0:02:12]} Na6 {[%emt 0:01:52]} 15. a3 {[%emt 0:01:33]} c5 {[%emt 0:11:51]} 16. Rxh4 {[%emt 0:06:49]} Qxh4 {[%emt 0:04:35]} 17. d5 {[%emt 0:00:12]} Rfe8 {[%emt 0:07:16]} 18. Bxe4 {[%emt 0:10:45]} Qd8 {[%emt 0:09:00]} 19. Bh7+ {[%emt 0:05:17]} Kf8 {[%emt 0:00:18]} 20. Nxf7 {[%emt 0:04:27]} Qf6 {[%emt 0:04:17]} 21. Bg6 {[%emt 0:02:49]} Kg8 {[%emt 0:03:07]} 22. g5 {[%emt 0:00:34]} hxg5 {[%emt 0:03:32]} 23. Rh1 {[%emt 0:01:09]} Qxf7 {[%emt 0:00:03]} 24. Bxf7+ {[%emt 0:00:42]} Kxf7 {[%emt 0:00:02]} 25. Qf5+ {[%emt 0:00:15]} Kg8 {[%emt 0:00:05]} 26. Be5 {[%emt 0:00:23]} Re7 {[%emt 0:01:44]} 27. Qh7+ {[%emt 0:00:26]} Kf8 {[%emt 0:00:04]} 28. Qh8+ {[%emt 0:00:32]} Kf7 {[%emt 0:00:04]} 29. Qxg7+ {[%emt 0:00:07]} Ke8 {[%emt 0:00:02]} 30. Qg6+ {[%emt 0:00:14]} Kd7 {[%emt 0:00:05]} 31. Qd6+ {[%emt 0:00:08]} 1-0

[Event "3rd Yerevan Open-A 2021"]
[Site "Yerevan"]
[Date "2021.10.15"]
[Round "2.4"]
[White "Puranik, Abhimanyu"]
[Black "Krishna Teja, N."]
[Result "1-0"]
[ECO "A11"]
[WhiteElo "2568"]
[BlackElo "2385"]
[Annotator "ChessBase"]
[PlyCount "89"]
[EventDate "2021.10.14"]
[EventType "swiss"]
[EventCountry "ARM"]
[SourceTitle "playchess.com"]
[Source "ChessBase"]
[SourceQuality "1"]
[TimeControl "40/5400+30:1800+30"]

1. Nf3 {[%emt 0:00:21]} d5 {[%emt 0:02:15]} 2. g3 {[%emt 0:00:14]} c6 {[%emt 0:01:02]} 3. Bg2 {[%emt 0:00:14]} Bg4 {[%emt 0:00:05]} 4. c4 {[%emt 0:01:29]} Nd7 {[%emt 0:03:17]} 5. cxd5 {[%emt 0:01:09]} cxd5 {[%emt 0:00:06]} 6. h3 {[%emt 0:02:46]} Bxf3 {[%emt 0:02:04]} 7. Bxf3 {[%emt 0:01:11]} e6 {[%emt 0:00:18]} 8. O-O {[%emt 0:00:22]} Ngf6 {[%emt 0:00:04]} 9. Nc3 {[%emt 0:01:06]} Be7 {[%emt 0:01:21]} 10. d4 {[%emt 0:00:40]} O-O {[%emt 0:00:31]} 11. Qd3 {[%emt 0:02:36]} Rc8 {[%emt 0:02:46]} 12. Bd2 {[%emt 0:11:12]} a6 {[%emt 0:01:48]} 13. Rac1 {[%emt 0:07:21]} b5 {[%emt 0:02:18]} 14. e3 {[%emt 0:09:09]} Nb6 {[%emt 0:02:36]} 15. b3 {[%emt 0:00:48]} Ba3 {[%emt 0:02:39]} 16. Rb1 {[%emt 0:02:01]} Bb4 {[%emt 0:16:41]} 17. Rfc1 {[%emt 0:02:05]} Qe7 {[%emt 0:01:59]} 18. Ne2 {[%emt 0:12:30]} h6 {[%emt 0:12:17]} 19. h4 {[%emt 0:08:17]} Rfd8 {[%emt 0:04:57]} 20. Nf4 {[%emt 0:02:17]} Nfd7 {[%emt 0:01:50]} 21. Qe2 {[%emt 0:05:15]} Qf8 {[%emt 0:05:35]} 22. Bxb4 {[%emt 0:08:48]} Qxb4 {[%emt 0:00:08]} 23. Nd3 {[%emt 0:00:08]} Qa3 {[%emt 0:02:33]} 24. Kg2 {[%emt 0:01:36]} a5 {[%emt 0:00:55]} 25. Qd2 {[%emt 0:01:27]} a4 {[%emt 0:03:51]} 26. Be2 {[%emt 0:00:59]} axb3 {[%emt 0:09:16]} 27. axb3 {[%emt 0:03:15]} Na8 {[%emt 0:02:41]} 28. Nc5 {[%emt 0:06:27]} Nxc5 {[%emt 0:02:44]} 29. dxc5 {[%emt 0:00:01]} Qa6 {[%emt 0:00:51]} 30. Ra1 {[%emt 0:00:48]} Qc6 {[%emt 0:00:09]} 31. Qa5 {[%emt 0:02:59]} Rb8 {[%emt 0:01:36]} 32. Qa6 {[%emt 0:00:48]} Qxa6 {[%emt 0:04:41]} 33. Rxa6 {[%emt 0:00:02]} b4 {[%emt 0:00:01]} 34. Rc6 {[%emt 0:02:38]} Kf8 {[%emt 0:02:37]} 35. Ra1 {[%emt 0:00:10]} Ke7 {[%emt 0:00:14]} 36. Ra7+ {[%emt 0:00:46]} Ke8 {[%emt 0:03:10]} 37. Bh5 {[%emt 0:01:21]} g6 {[%emt 0:01:56]} 38. Bxg6 {[%emt 0:00:10]} fxg6 {[%emt 0:00:06]} 39. Rxe6+ {[%emt 0:00:02]} Kf8 {[%emt 0:00:05]} 40. Rf6+ {[%emt 0:00:00]} Kg8 {[%emt 0:00:00]} 41. Rxg6+ {[%emt 0:00:06]} Kf8 {[%emt 0:00:30]} 42. Rxh6 {[%emt 0:00:03]} Kg8 {[%emt 0:00:04]} 43. Rhh7 {[%emt 0:01:12]} Rbc8 {[%emt 0:00:09]} 44. h5 {[%emt 0:01:15]} Rc6 {[%emt 0:00:46]} 45. g4 {[%emt 0:00:47]} 1-0

[Event "3rd Yerevan Open-A 2021"]
[Site "Yerevan"]
[Date "2021.10.15"]
[Round "2.5"]
[White "Padmini, Rout"]
[Black "Paichadze, Luka"]
[Result "1/2-1/2"]
[ECO "A30"]
[WhiteElo "2380"]
[BlackElo "2566"]
[Annotator "ChessBase"]
[PlyCount "100"]
[EventDate "2021.10.14"]
[EventType "swiss"]
[EventCountry "ARM"]
[SourceTitle "playchess.com"]
[Source "ChessBase"]
[SourceQuality "1"]
[TimeControl "40/5400+30:1800+30"]

1. Nf3 {[%emt 0:00:08]} Nf6 {[%emt 0:00:12]} 2. g3 {[%emt 0:00:10]} d5 {[%emt 0:00:28]} 3. Bg2 {[%emt 0:00:11]} c5 {[%emt 0:00:14]} 4. O-O {[%emt 0:00:20]} Nc6 {[%emt 0:00:07]} 5. c4 {[%emt 0:01:05]} d4 {[%emt 0:02:20]} 6. e3 {[%emt 0:01:10]} e5 {[%emt 0:04:56]} 7. exd4 {[%emt 0:00:53]} cxd4 {[%emt 0:02:00]} 8. Re1 {[%emt 0:04:21]} Bd6 {[%emt 0:06:05]} 9. d3 {[%emt 0:29:52]} O-O {[%emt 0:01:30]} 10. Bg5 {[%emt 0:00:09]} h6 {[%emt 0:01:07]} 11. Bxf6 {[%emt 0:00:06]} Qxf6 {[%emt 0:00:06]} 12. Nbd2 {[%emt 0:00:16]} Bc7 {[%emt 0:07:45]} 13. a3 {[%emt 0:07:57]} a5 {[%emt 0:04:50]} 14. c5 {[%emt 0:00:36]} a4 {[%emt 0:08:48]} 15. Nc4 {[%emt 0:03:11]} Bf5 {[%emt 0:01:19]} 16. Rc1 {[%emt 0:01:49]} Rfe8 {[%emt 0:01:35]} 17. Qc2 {[%emt 0:05:51]} Qe7 {[%emt 0:17:52]} 18. Nfxe5 {[%emt 0:15:16]} Nxe5 {[%emt 0:01:05]} 19. Nxe5 {[%emt 0:00:23]} Bxe5 {[%emt 0:00:05]} 20. f4 {[%emt 0:00:22]} Qc7 {[%emt 0:00:37]} 21. fxe5 {[%emt 0:00:09]} Rxe5 {[%emt 0:00:37]} 22. Rxe5 {[%emt 0:02:21]} Qxe5 {[%emt 0:00:05]} 23. Qd2 {[%emt 0:06:24]} Rc8 {[%emt 0:00:39]} 24. Bxb7 {[%emt 0:02:15]} Rxc5 {[%emt 0:00:06]} 25. Rxc5 {[%emt 0:00:05]} Qxc5 {[%emt 0:00:03]} 26. Bf3 {[%emt 0:03:09]} Qb5 {[%emt 0:00:56]} 27. Be2 {[%emt 0:01:41]} Bd7 {[%emt 0:04:50]} 28. Bf1 {[%emt 0:02:16]} Bc6 {[%emt 0:01:39]} 29. Bg2 {[%emt 0:03:23]} Bxg2 {[%emt 0:00:41]} 30. Kxg2 {[%emt 0:00:02]} Qc6+ {[%emt 0:00:19]} 31. Kg1 {[%emt 0:00:25]} Qf3 {[%emt 0:04:57]} 32. Qc2 {[%emt 0:06:33]} Kh7 {[%emt 0:04:34]} 33. b3 {[%emt 0:02:59]} axb3 {[%emt 0:07:24]} 34. Qxb3 {[%emt 0:00:05]} Qe3+ {[%emt 0:00:26]} 35. Kf1 {[%emt 0:00:58]} Qc1+ {[%emt 0:00:42]} 36. Kg2 {[%emt 0:00:52]} f5 {[%emt 0:00:19]} 37. a4 {[%emt 0:00:20]} h5 {[%emt 0:00:47]} 38. Qa2 {[%emt 0:00:38]} Qd1 {[%emt 0:02:43]} 39. Qc4 {[%emt 0:00:42]} Qe2+ {[%emt 0:02:16]} 40. Kg1 {[%emt 0:00:00]} Qe3+ {[%emt 0:00:00]} 41. Kg2 {[%emt 0:08:00]} h4 {[%emt 0:01:33]} 42. Qc2 {[%emt 0:03:33]} h3+ {[%emt 0:11:14]} 43. Kxh3 {[%emt 0:03:58]} Qf3 {[%emt 0:00:17]} 44. Qd2 {[%emt 0:01:20]} Kg6 {[%emt 0:00:41]} 45. a5 {[%emt 0:07:04]} Kh5 {[%emt 0:09:07]} 46. Qe1 {[%emt 0:00:42]} Qxd3 {[%emt 0:00:16]} 47. Qe8+ {[%emt 0:01:23]} Kh6 {[%emt 0:00:48]} 48. Qh8+ {[%emt 0:00:31]} Kg6 {[%emt 0:00:06]} 49. Qe8+ {[%emt 0:00:14]} Kh6 {[%emt 0:00:52]} 50. Qh8+ {[%emt 0:00:09]} Kg6 {[%emt 0:00:04]} 1/2-1/2

[Event "3rd Yerevan Open-A 2021"]
[Site "Yerevan"]
[Date "2021.10.15"]
[Round "2.6"]
[White "Petrosian, Tigran L."]
[Black "Moksh Amit Doshi"]
[Result "1-0"]
[ECO "C85"]
[WhiteElo "2562"]
[BlackElo "2379"]
[Annotator "ChessBase"]
[PlyCount "138"]
[EventDate "2021.10.14"]
[EventType "swiss"]
[EventCountry "ARM"]
[SourceTitle "playchess.com"]
[Source "ChessBase"]
[SourceQuality "1"]
[TimeControl "40/5400+30:1800+30"]

1. e4 {[%emt 0:00:02]} e5 {[%emt 0:00:37]} 2. Nf3 {[%emt 0:00:06]} Nc6 {[%emt 0:00:06]} 3. Bb5 {[%emt 0:00:06]} a6 {[%emt 0:00:05]} 4. Ba4 {[%emt 0:00:05]} Nf6 {[%emt 0:00:05]} 5. O-O {[%emt 0:00:06]} Be7 {[%emt 0:00:04]} 6. Bxc6 {[%emt 0:00:13]} dxc6 {[%emt 0:00:06]} 7. d3 {[%emt 0:00:04]} Bd6 {[%emt 0:00:56]} 8. Nbd2 {[%emt 0:00:42]} Be6 {[%emt 0:00:09]} 9. Qe2 {[%emt 0:04:10]} O-O {[%emt 0:06:25]} 10. h3 {[%emt 0:00:36]} Nd7 {[%emt 0:03:18]} 11. Nb3 {[%emt 0:06:25]} f6 {[%emt 0:00:30]} 12. Na5 {[%emt 0:00:30]} Rb8 {[%emt 0:10:06]} 13. Be3 {[%emt 0:13:45]} c5 {[%emt 0:06:35]} 14. a4 {[%emt 0:02:35]} Qe8 {[%emt 0:07:23]} 15. Nd2 {[%emt 0:01:44]} Qg6 {[%emt 0:06:32]} 16. Qf3 {[%emt 0:13:10]} f5 {[%emt 0:09:31]} 17. exf5 {[%emt 0:00:58]} Rxf5 {[%emt 0:00:10]} 18. Qg3 {[%emt 0:00:14]} Qxg3 {[%emt 0:01:31]} 19. fxg3 {[%emt 0:00:05]} Rxf1+ {[%emt 0:00:52]} 20. Kxf1 {[%emt 0:02:13]} Nf6 {[%emt 0:01:44]} 21. Nac4 {[%emt 0:02:37]} Bd5 {[%emt 0:04:46]} 22. g4 {[%emt 0:04:05]} b5 {[%emt 0:10:22]} 23. axb5 {[%emt 0:16:55]} axb5 {[%emt 0:00:29]} 24. Nxd6 {[%emt 0:00:04]} cxd6 {[%emt 0:00:08]} 25. Ra6 {[%emt 0:00:04]} Ne8 {[%emt 0:00:38]} 26. Kf2 {[%emt 0:05:33]} Kf7 {[%emt 0:04:02]} 27. c4 {[%emt 0:00:51]} bxc4 {[%emt 0:04:18]} 28. dxc4 {[%emt 0:01:03]} Bb7 {[%emt 0:02:25]} 29. Rb6 {[%emt 0:01:43]} Ke7 {[%emt 0:01:52]} 30. b4 {[%emt 0:01:51]} cxb4 {[%emt 0:00:31]} 31. c5 {[%emt 0:06:37]} dxc5 {[%emt 0:01:16]} 32. Bxc5+ {[%emt 0:11:54]} Kd7 {[%emt 0:00:19]} 33. Nc4 {[%emt 0:00:43]} Kc7 {[%emt 0:02:51]} 34. Rxb4 {[%emt 0:00:23]} Bd5 {[%emt 0:01:56]} 35. Bb6+ {[%emt 0:01:29]} Kd7 {[%emt 0:03:57]} 36. Nxe5+ {[%emt 0:00:16]} Ke6 {[%emt 0:00:19]} 37. Nd3 {[%emt 0:00:12]} Kf7 {[%emt 0:01:15]} 38. g5 {[%emt 0:02:54]} Kg8 {[%emt 0:01:39]} 39. g4 {[%emt 0:02:20]} Nd6 {[%emt 0:01:25]} 40. Rd4 {[%emt 0:00:00]} Ne4+ {[%emt 0:00:00]} 41. Ke3 {[%emt 0:01:05]} Ba8 {[%emt 0:02:33]} 42. Bd8 {[%emt 0:05:09]} Nc3 {[%emt 0:01:16]} 43. Bc7 {[%emt 0:10:59]} Re8+ {[%emt 0:00:44]} 44. Be5 {[%emt 0:00:15]} Nd5+ {[%emt 0:01:08]} 45. Kd2 {[%emt 0:00:55]} Bc6 {[%emt 0:01:52]} 46. Bd6 {[%emt 0:04:15]} Ra8 {[%emt 0:05:57]} 47. Ne5 {[%emt 0:05:42]} Ra2+ {[%emt 0:03:18]} 48. Kc1 {[%emt 0:00:19]} Bb7 {[%emt 0:01:11]} 49. Rd3 {[%emt 0:00:52]} Ra6 {[%emt 0:03:04]} 50. Ba3 {[%emt 0:00:25]} Re6 {[%emt 0:01:29]} 51. Bb2 {[%emt 0:00:07]} Re8 {[%emt 0:01:51]} 52. h4 {[%emt 0:03:15]} Rf8 {[%emt 0:02:04]} 53. Rb3 {[%emt 0:02:11]} Ba8 {[%emt 0:00:50]} 54. Ra3 {[%emt 0:00:49]} Nf4 {[%emt 0:03:57]} 55. Ra7 {[%emt 0:00:40]} Ne6 {[%emt 0:01:10]} 56. Kd2 {[%emt 0:01:15]} Bd5 {[%emt 0:00:26]} 57. Ke3 {[%emt 0:00:43]} Rb8 {[%emt 0:00:08]} 58. Bc3 {[%emt 0:00:18]} Rc8 {[%emt 0:00:05]} 59. Bb4 {[%emt 0:00:20]} Rb8 {[%emt 0:00:20]} 60. Bd6 {[%emt 0:00:12]} Rd8 {[%emt 0:00:06]} 61. Be7 {[%emt 0:01:00]} Rb8 {[%emt 0:00:27]} 62. Rd7 {[%emt 0:00:42]} Ba8 {[%emt 0:00:51]} 63. Rd6 {[%emt 0:00:36]} Nc7 {[%emt 0:00:27]} 64. Bd8 {[%emt 0:00:16]} Nd5+ {[%emt 0:01:00]} 65. Kd4 {[%emt 0:00:10]} Nf4 {[%emt 0:00:20]} 66. h5 {[%emt 0:00:37]} Rb4+ {[%emt 0:01:42]} 67. Kc3 {[%emt 0:00:33]} Re4 {[%emt 0:00:35]} 68. Bf6 {[%emt 0:00:53]} Ne2+ {[%emt 0:01:46]} 69. Kd3 {[%emt 0:00:26]} Nf4+ {[%emt 0:13:10]} 1-0

[Event "3rd Yerevan Open-A 2021"]
[Site "Yerevan"]
[Date "2021.10.15"]
[Round "2.10"]
[White "Baghdasaryan, Vahe"]
[Black "Sivuk, Vitaly"]
[Result "1/2-1/2"]
[ECO "C54"]
[WhiteElo "2334"]
[BlackElo "2529"]
[Annotator "ChessBase"]
[PlyCount "95"]
[EventDate "2021.10.14"]
[EventType "swiss"]
[EventCountry "ARM"]
[SourceTitle "playchess.com"]
[Source "ChessBase"]
[SourceQuality "1"]
[TimeControl "40/5400+30:1800+30"]

1. e4 {[%emt 1:31:00]} e5 {[%emt 1:31:00]} 2. Nf3 {[%emt 0:00:30]} Nc6 {[%emt 0:00:30]} 3. Bc4 {[%emt 0:00:30]} Bc5 {[%emt 0:00:30]} 4. d3 {[%emt 0:00:30]} Nf6 {[%emt 0:00:30]} 5. c3 {[%emt 0:00:30]} d6 {[%emt 0:00:30]} 6. Nbd2 {[%emt 0:00:30]} O-O {[%emt 0:00:30]} 7. O-O {[%emt 0:00:30]} a5 {[%emt 0:00:30]} 8. h3 {[%emt 0:00:30]} Be6 {[%emt 0:00:30]} 9. Re1 {[%emt 0:00:30]} Bxc4 {[%emt 0:00:30]} 10. Nxc4 {[%emt 0:00:30]} Re8 {[%emt 0:00:30]} 11. Bg5 {[%emt 0:00:30]} h6 {[%emt 0:00:30]} 12. Bh4 {[%emt 0:00:30]} a4 {[%emt 0:00:30]} 13. Ne3 {[%emt 0:00:30]} Bxe3 {[%emt 0:00:30]} 14. fxe3 {[%emt 0:00:30]} Nb8 {[%emt 0:00:30]} 15. Rf1 {[%emt 0:00:30]} Nbd7 {[%emt 0:00:30]} 16. Qe1 {[%emt 0:00:30]} Re6 {[%emt 0:00:30]} 17. d4 {[%emt 0:00:30]} Qf8 {[%emt 0:00:30]} 18. d5 {[%emt 0:00:30]} Ree8 {[%emt 0:00:30]} 19. Bxf6 {[%emt 0:00:30]} Nxf6 {[%emt 0:00:30]} 20. Nh4 {[%emt 0:00:30]} Kh7 {[%emt 0:00:30]} 21. Rxf6 {[%emt 0:00:30]} gxf6 {[%emt 0:00:30]} 22. Qe2 {[%emt 0:00:30]} Qh8 {[%emt 0:00:30]} 23. Rf1 {[%emt 0:00:30]} Rg8 {[%emt 0:00:30]} 24. Rf2 {[%emt 0:00:30]} Rg5 {[%emt 0:00:30]} 25. Qf1 {[%emt 0:00:30]} Rf8 {[%emt 0:00:30]} 26. Rxf6 {[%emt 0:00:30]} Qg7 {[%emt 0:00:30]} 27. Qf2 {[%emt 0:00:30]} Kg8 {[%emt 0:00:30]} 28. Kh2 {[%emt 0:00:30]} Ra8 {[%emt 0:00:30]} 29. Rf3 {[%emt 0:00:30]} Kf8 {[%emt 0:00:30]} 30. Nf5 {[%emt 0:00:30]} Qg6 {[%emt 0:00:30]} 31. c4 {[%emt 0:00:30]} b6 {[%emt 0:00:30]} 32. Nh4 {[%emt 0:00:30]} Qh7 {[%emt 0:00:30]} 33. Nf5 {[%emt 0:00:30]} Ke8 {[%emt 0:00:30]} 34. Qh4 {[%emt 0:00:30]} Qg6 {[%emt 0:00:30]} 35. g4 {[%emt 0:00:30]} a3 {[%emt 0:00:30]} 36. b3 {[%emt 0:00:30]} Kd7 {[%emt 0:00:30]} 37. Qxh6 {[%emt 0:00:30]} Rxf5 {[%emt 0:00:30]} 38. Qxg6 {[%emt 0:00:30]} Rxf3 {[%emt 0:00:30]} 39. Qg7 {[%emt 0:00:30]} Kc8 {[%emt 0:00:30]} 40. Kg2 {[%emt 0:00:30]} Rxe3 {[%emt 0:00:30]} 41. Qxf7 {[%emt 0:30:30]} Kb7 {[%emt 0:30:30]} 42. c5 {[%emt 0:00:30]} bxc5 {[%emt 0:00:30]} 43. Qf1 {[%emt 0:00:30]} Kb6 {[%emt 0:00:30]} 44. Qc4 {[%emt 0:00:30]} Rh8 {[%emt 0:00:30]} 45. Qa4 {[%emt 0:00:30]} Rhxh3 {[%emt 0:00:30]} 46. Qc6+ {[%emt 0:00:30]} Ka5 {[%emt 0:00:30]} 47. Qa4+ {[%emt 0:00:30]} Kb6 {[%emt 0:00:30]} 48. Qc6+ {[%emt 0:00:30]} 1/2-1/2

[Event "3rd Yerevan Open-A 2021"]
[Site "Yerevan"]
[Date "2021.10.15"]
[Round "2.11"]
[White "Harsha Bharathakoti"]
[Black "Vantika Agrawal"]
[Result "1/2-1/2"]
[ECO "D02"]
[WhiteElo "2517"]
[BlackElo "2322"]
[Annotator "ChessBase"]
[PlyCount "124"]
[EventDate "2021.10.14"]
[EventType "swiss"]
[EventCountry "ARM"]
[SourceTitle "playchess.com"]
[Source "ChessBase"]
[SourceQuality "1"]
[TimeControl "40/5400+30:1800+30"]

1. d4 {[%emt 0:00:03]} Nf6 {[%emt 0:01:33]} 2. Bf4 {[%emt 0:00:07]} d5 {[%emt 0:04:59]} 3. e3 {[%emt 0:01:15]} c5 {[%emt 0:01:53]} 4. Nf3 {[%emt 0:05:15]} Nc6 {[%emt 0:02:16]} 5. Nbd2 {[%emt 0:06:38]} Nh5 {[%emt 0:00:34]} 6. Be5 {[%emt 0:01:07]} f6 {[%emt 0:07:07]} 7. Bg3 {[%emt 0:00:52]} e6 {[%emt 0:02:23]} 8. Bb5 {[%emt 0:13:12]} Qb6 {[%emt 0:13:28]} 9. c4 {[%emt 0:00:45]} Nxg3 {[%emt 0:14:52]} 10. hxg3 {[%emt 0:00:05]} Bd7 {[%emt 0:06:59]} 11. Qb3 {[%emt 0:16:09]} O-O-O {[%emt 0:04:20]} 12. cxd5 {[%emt 0:06:29]} exd5 {[%emt 0:03:02]} 13. dxc5 {[%emt 0:00:06]} Bxc5 {[%emt 0:01:06]} 14. O-O {[%emt 0:04:34]} Kb8 {[%emt 0:00:49]} 15. Bxc6 {[%emt 0:00:25]} Bxc6 {[%emt 0:00:45]} 16. Qxb6 {[%emt 0:00:19]} Bxb6 {[%emt 0:00:14]} 17. Nb3 {[%emt 0:00:02]} g5 {[%emt 0:06:24]} 18. Rfd1 {[%emt 0:03:59]} h5 {[%emt 0:03:03]} 19. Nbd4 {[%emt 0:00:09]} Bd7 {[%emt 0:01:33]} 20. Ne2 {[%emt 0:00:13]} Bg4 {[%emt 0:01:17]} 21. Rd2 {[%emt 0:02:31]} Ba5 {[%emt 0:07:01]} 22. Rd3 {[%emt 0:00:47]} Bf5 {[%emt 0:00:40]} 23. Rb3 {[%emt 0:05:21]} Bc2 {[%emt 0:06:30]} 24. Rb5 {[%emt 0:00:15]} Bb6 {[%emt 0:00:06]} 25. Ne1 {[%emt 0:05:04]} Ba4 {[%emt 0:02:31]} 26. Rb4 {[%emt 0:00:05]} Bd7 {[%emt 0:00:45]} 27. Rd1 {[%emt 0:01:38]} Bc5 {[%emt 0:01:11]} 28. Nd3 {[%emt 0:03:22]} Bxb4 {[%emt 0:00:23]} 29. Nxb4 {[%emt 0:00:02]} Be6 {[%emt 0:01:21]} 30. Nc3 {[%emt 0:03:07]} h4 {[%emt 0:02:32]} 31. Rd4 {[%emt 0:04:43]} hxg3 {[%emt 0:00:27]} 32. fxg3 {[%emt 0:00:01]} Rd7 {[%emt 0:01:06]} 33. Kf2 {[%emt 0:01:11]} Rc8 {[%emt 0:00:43]} 34. Rd2 {[%emt 0:00:10]} Rcd8 {[%emt 0:01:59]} 35. Nc2 {[%emt 0:00:06]} Bf7 {[%emt 0:00:30]} 36. g4 {[%emt 0:00:19]} Bg6 {[%emt 0:00:41]} 37. Nd4 {[%emt 0:00:04]} Re8 {[%emt 0:00:56]} 38. Rd1 {[%emt 0:00:08]} Rh8 {[%emt 0:00:34]} 39. Nde2 {[%emt 0:01:20]} Bf7 {[%emt 0:00:32]} 40. Nd4 {[%emt 0:00:00]} a6 {[%emt 0:00:00]} 41. a3 {[%emt 0:00:04]} Bg6 {[%emt 0:09:12]} 42. Kg3 {[%emt 0:00:41]} Re8 {[%emt 0:07:01]} 43. Kf2 {[%emt 0:00:15]} Be4 {[%emt 0:02:32]} 44. Kg3 {[%emt 0:07:09]} Re5 {[%emt 0:01:36]} 45. Rd2 {[%emt 0:03:06]} Kc7 {[%emt 0:06:22]} 46. Rd1 {[%emt 0:02:07]} Rh7 {[%emt 0:01:38]} 47. Rf1 {[%emt 0:00:26]} Rh6 {[%emt 0:01:15]} 48. Rc1 {[%emt 0:00:24]} Kb8 {[%emt 0:00:53]} 49. Rd1 {[%emt 0:02:10]} Rh7 {[%emt 0:00:42]} 50. Rf1 {[%emt 0:00:10]} Rf7 {[%emt 0:00:21]} 51. Nxe4 {[%emt 0:04:35]} Rxe4 {[%emt 0:00:27]} 52. Kf3 {[%emt 0:00:19]} Rfe7 {[%emt 0:00:54]} 53. Nf5 {[%emt 0:00:05]} Rc7 {[%emt 0:00:13]} 54. Rd1 {[%emt 0:00:53]} Re5 {[%emt 0:01:35]} 55. Nd4 {[%emt 0:00:04]} Rh7 {[%emt 0:01:21]} 56. Nf5 {[%emt 0:00:09]} Rh8 {[%emt 0:00:57]} 57. Nd4 {[%emt 0:00:41]} Kc7 {[%emt 0:01:14]} 58. Nf5 {[%emt 0:00:44]} Kb6 {[%emt 0:01:02]} 59. Nd4 {[%emt 0:00:20]} Rhe8 {[%emt 0:00:50]} 60. Rd3 {[%emt 0:00:04]} Rc8 {[%emt 0:00:21]} 61. Rd1 {[%emt 0:00:04]} Rce8 {[%emt 0:00:44]} 62. Rd3 {[%emt 0:00:04]} Re4 1/2-1/2

[Event "3rd Yerevan Open-A 2021"]
[Site "Yerevan"]
[Date "2021.10.15"]
[Round "2.12"]
[White "Hakemi, Arman"]
[Black "Hayrapetyan, Hovik"]
[Result "0-1"]
[ECO "E17"]
[WhiteElo "2323"]
[BlackElo "2500"]
[Annotator "ChessBase"]
[PlyCount "92"]
[EventDate "2021.10.14"]
[EventType "swiss"]
[EventCountry "ARM"]
[SourceTitle "playchess.com"]
[Source "ChessBase"]
[SourceQuality "1"]
[TimeControl "40/5400+30:1800+30"]

1. d4 {[%emt 0:08:30]} Nf6 {[%emt 0:01:51]} 2. c4 {[%emt 0:05:04]} e6 {[%emt 0:01:10]} 3. Nf3 {[%emt 0:00:14]} b6 {[%emt 0:02:37]} 4. g3 {[%emt 0:05:24]} Bb7 {[%emt 0:01:41]} 5. Bg2 {[%emt 0:00:07]} Bb4+ {[%emt 0:01:12]} 6. Bd2 {[%emt 0:00:07]} Be7 {[%emt 0:01:23]} 7. O-O {[%emt 0:00:08]} O-O {[%emt 0:01:19]} 8. Bf4 {[%emt 0:00:25]} d6 {[%emt 0:02:28]} 9. Nc3 {[%emt 0:01:15]} Ne4 {[%emt 0:01:26]} 10. Qc2 {[%emt 0:00:30]} Nxc3 {[%emt 0:00:20]} 11. Qxc3 {[%emt 0:00:07]} Nd7 {[%emt 0:00:36]} 12. Rfe1 {[%emt 0:02:21]} c5 {[%emt 0:08:32]} 13. dxc5 {[%emt 0:04:04]} Nxc5 {[%emt 0:03:10]} 14. Rad1 {[%emt 0:07:38]} Rc8 {[%emt 0:02:28]} 15. b3 {[%emt 1:02:06]} Qc7 {[%emt 0:08:54]} 16. Qc1 {[%emt 0:00:00]} Rfd8 {[%emt 0:00:58]} 17. Bg5 {[%emt 0:00:00]} Bxg5 {[%emt 0:01:02]} 18. Qxg5 {[%emt 0:00:00]} d5 {[%emt 0:03:50]} 19. cxd5 {[%emt 0:00:00]} Ne4 {[%emt 0:07:13]} 20. Qe5 {[%emt 0:00:00]} Bxd5 {[%emt 0:16:15]} 21. Qxc7 {[%emt 0:00:00]} Rxc7 {[%emt 0:03:08]} 22. Ne5 {[%emt 0:00:00]} Nc3 {[%emt 0:01:43]} 23. Rd2 {[%emt 0:00:00]} f6 {[%emt 0:04:44]} 24. Nc4 {[%emt 0:00:00]} Rdd7 {[%emt 0:03:33]} 25. Bxd5 {[%emt 0:00:00]} exd5 {[%emt 0:02:52]} 26. Ne3 {[%emt 0:00:00]} g6 {[%emt 0:01:23]} 27. f3 {[%emt 0:00:00]} Kf7 {[%emt 0:05:17]} 28. Kf2 {[%emt 0:00:00]} b5 {[%emt 0:00:04]} 29. Ng2 {[%emt 0:01:23]} a5 {[%emt 0:03:04]} 30. a3 {[%emt 0:00:27]} f5 {[%emt 0:06:18]} 31. Nf4 {[%emt 0:00:49]} Kf6 {[%emt 0:00:03]} 32. Nd3 {[%emt 0:00:16]} Ne4+ {[%emt 0:00:37]} 33. fxe4 {[%emt 0:00:08]} dxe4 {[%emt 0:00:04]} 34. Red1 {[%emt 0:03:10]} Rc3 {[%emt 0:00:06]} 35. b4 {[%emt 0:02:50]} a4 {[%emt 0:00:04]} 36. Ke1 {[%emt 0:00:43]} exd3 {[%emt 0:00:06]} 37. Rxd3 {[%emt 0:00:29]} Rdxd3 {[%emt 0:00:07]} 38. Rxd3 {[%emt 0:00:04]} Rxd3 {[%emt 0:00:11]} 39. exd3 {[%emt 0:00:04]} Ke5 {[%emt 0:00:02]} 40. h4 {[%emt 0:00:00]} f4 {[%emt 0:00:00]} 41. gxf4+ {[%emt 0:02:55]} Kxf4 {[%emt 0:05:13]} 42. Kf2 {[%emt 0:00:31]} Ke5 {[%emt 0:00:10]} 43. Ke3 {[%emt 0:01:25]} h6 {[%emt 0:00:36]} 44. d4+ {[%emt 0:02:11]} Kf5 {[%emt 0:05:12]} 45. Kf3 {[%emt 0:00:31]} h5 {[%emt 0:01:31]} 46. Ke3 {[%emt 0:06:42]} g5 {[%emt 0:00:23]} 0-1